[Event "FIDE World Cup G12-A 2024"]
[Site "Batumi"]
[Date "2024.06.29"]
[Round "7.8"]
[White "Diaskyzy, Daliya"]
[Black "Kedelidze, Aneta"]
[Result "1/2-1/2"]
[ECO "C89"]
[WhiteElo "1793"]
[BlackElo "1544"]
[Annotator "NA RC"]
[PlyCount "107"]
[EventDate "2024.06.23"]
[EventType "swiss"]
[EventCountry "GEO"]
[SourceTitle "playchess.com"]
[Source "ChessBase"]
[SourceQuality "1"]
[TimeControl "5400+30"]

1. e4 {[%emt 0:00:01]} e5 {[%emt 0:00:10]} 2. Nf3 {[%emt 0:00:08]} Nc6 {[%emt 0:00:08]} 3. Bb5 {[%emt 0:00:04]} a6 {[%emt 0:00:10]} 4. Ba4 {[%emt 0:00:03]} Nf6 {[%emt 0:00:12]} 5. O-O {[%emt 0:01:21]} Be7 {[%emt 0:00:14]} 6. Re1 {[%emt 0:00:33]} b5 {[%emt 0:00:10]} 7. Bb3 {[%emt 0:00:03]} O-O {[%emt 0:00:07]} 8. c3 {[%emt 0:01:21]} d5 {[%emt 0:00:11]} 9. exd5 {[%emt 0:11:40]} Nxd5 {[%emt 1:33:38]} 10. d4 {[%emt 0:00:44]} exd4 {[%emt 0:00:00]} 11. Nxd4 {[%emt 0:01:13]} Nxd4 {[%emt 0:00:00]} 12. Qxd4 {[%emt 0:01:02]} c6 {[%emt 0:00:00]} 13. Bxd5 {[%emt 0:00:56]} cxd5 {[%emt 0:00:00]} 14. Rd1 {[%emt 0:00:56]} Bb7 {[%emt 0:00:00]} 15. Bf4 {[%emt 0:01:52]} Rc8 {[%emt 0:00:00]} 16. Nd2 {[%emt 0:01:36]} Bc5 {[%emt 0:00:00]} 17. Qd3 {[%emt 0:04:12]} Qb6 {[%emt 0:00:00]} 18. Qg3 {[%emt 0:04:39]} Rc6 {[%emt 0:00:00]} 19. b4 {[%emt 0:08:32]} Bd6 {[%emt 0:00:00]} 20. Bxd6 {[%emt 0:02:42]} Rxd6 {[%emt 0:00:00]} 21. Nf3 {[%emt 0:00:26]} Rg6 {[%emt 0:00:00]} 22. Qf4 {[%emt 0:00:34]} Rc8 {[%emt 0:00:00]} 23. Rac1 {[%emt 0:04:14]} h6 {[%emt 0:00:00]} 24. Rd4 {[%emt 0:05:44]} Rf6 {[%emt 0:00:00]} 25. Qg4 {[%emt 0:04:45]} Rg6 {[%emt 0:00:00]} 26. Qf4 {[%emt 0:00:34]} Qe6 {[%emt 0:00:00]} 27. Ne5 {[%emt 0:09:26]} Rf6 {[%emt 0:00:00]} 28. Qg3 {[%emt 0:00:59]} Re8 {[%emt 0:00:00]} 29. f4 {[%emt 0:08:00]} Qf5 {[%emt 0:00:00]} 30. Qf3 {[%emt 0:05:59]} h5 {[%emt 0:00:00]} 31. a4 {[%emt 0:02:16]} Rfe6 {[%emt 0:00:05]} 32. Qf1 {[%emt 0:12:04]} Rb6 {[%emt 0:04:04]} 33. axb5 {[%emt 0:01:37]} axb5 {[%emt 0:00:25]} 34. Nd3 {[%emt 0:01:41]} Re4 {[%emt 0:01:10]} 35. Nc5 {[%emt 0:01:36]} Re8 {[%emt 0:02:47]} 36. Nxb7 {[%emt 0:02:15]} Rxb7 {[%emt 0:00:03]} 37. Rcd1 {[%emt 0:00:09]} Rd8 {[%emt 0:01:15]} 38. Qf3 {[%emt 0:00:32]} Rbd7 {[%emt 0:00:41]} 39. h3 {[%emt 0:00:09]} g6 {[%emt 0:00:48]} 40. g4 {[%emt 0:00:53]} hxg4 {[%emt 0:00:02]} 41. hxg4 {[%emt 0:00:02]} Qc2 {[%emt 0:01:25]} 42. R1d2 {[%emt 0:00:41]} Qc1+ {[%emt 0:00:15]} 43. Kg2 {[%emt 0:00:08]} Kg7 {[%emt 0:00:30]} 44. f5 {[%emt 0:00:54]} Rh8 {[%emt 0:00:44]} 45. Rd1 {[%emt 0:00:23]} Qg5 {[%emt 0:00:13]} 46. fxg6 {[%emt 0:01:31]} Qxg6 {[%emt 0:01:02]} 47. Rxd5 {[%emt 0:00:34]} Rxd5 {[%emt 0:00:17]} 48. Rxd5 {[%emt 0:01:21]} Qc2+ {[%emt 0:00:08]} 49. Kg1 {[%emt 0:00:52]} Qc1+ {[%emt 0:01:37]} 50. Rd1 {[%emt 0:00:45]} Qc2 {[%emt 0:00:27]} 51. Rd5 {[%emt 0:00:27]} Qc1+ {[%emt 0:00:14]} 52. Rd1 {[%emt 0:00:03]} Qc2 {[%emt 0:00:05]} 53. Rd5 {[%emt 0:00:49]} Qc1+ {[%emt 0:00:06]} 54. Rd1 {[%emt 0:00:54]} 1/2-1/2

[Event "FIDE World Cup G12-A 2024"]
[Site "Batumi"]
[Date "2024.06.29"]
[Round "7.9"]
[White "Muradova, Nebahat"]
[Black "Giorgadze, Mariam"]
[Result "1/2-1/2"]
[ECO "D24"]
[WhiteElo "1626"]
[BlackElo "1533"]
[Annotator "NA RC"]
[PlyCount "131"]
[EventDate "2024.06.23"]
[EventType "swiss"]
[EventCountry "GEO"]
[SourceTitle "playchess.com"]
[Source "ChessBase"]
[SourceQuality "1"]
[TimeControl "5400+30"]

1. d4 {[%emt 0:00:03]} Nf6 {[%emt 1:31:00]} 2. c4 {[%emt 1:31:27]} e6 {[%emt 0:00:00]} 3. Nf3 {[%emt 0:00:00]} d5 {[%emt 0:00:00]} 4. Nc3 {[%emt 0:00:00]} a6 {[%emt 0:00:00]} 5. Bg5 {[%emt 0:00:00]} dxc4 {[%emt 0:00:00]} 6. e4 {[%emt 0:00:00]} b5 {[%emt 0:00:00]} 7. e5 {[%emt 0:00:00]} h6 {[%emt 0:00:00]} 8. exf6 {[%emt 0:00:00]} hxg5 {[%emt 0:00:00]} 9. Nxg5 {[%emt 0:00:00]} Qxf6 {[%emt 0:00:00]} 10. Nge4 {[%emt 0:00:00]} Qd8 {[%emt 0:00:00]} 11. a4 {[%emt 0:00:00]} Bb7 {[%emt 0:00:00]} 12. axb5 {[%emt 0:00:00]} axb5 {[%emt 0:00:00]} 13. Rxa8 {[%emt 0:00:00]} Bxa8 {[%emt 0:00:00]} 14. Ng3 {[%emt 0:00:00]} c6 {[%emt 0:00:00]} 15. Be2 {[%emt 0:00:00]} Be7 {[%emt 0:00:00]} 16. Bf3 {[%emt 0:00:00]} O-O {[%emt 0:00:00]} 17. O-O {[%emt 0:00:00]} Nd7 {[%emt 0:00:00]} 18. Be4 {[%emt 0:00:00]} Nf6 {[%emt 0:00:00]} 19. Bb1 {[%emt 0:00:00]} Qb6 {[%emt 0:00:00]} 20. Nge4 {[%emt 0:00:00]} g6 {[%emt 0:00:00]} 21. h4 {[%emt 0:00:00]} Nxe4 {[%emt 0:00:00]} 22. Nxe4 {[%emt 0:00:00]} Bxh4 {[%emt 0:00:00]} 23. Qg4 {[%emt 0:00:00]} Qd8 {[%emt 0:00:00]} 24. g3 {[%emt 0:00:00]} Bf6 {[%emt 0:00:00]} 25. Rd1 {[%emt 0:00:00]} Bg7 {[%emt 0:00:00]} 26. Ng5 {[%emt 0:00:00]} Qf6 {[%emt 0:00:00]} 27. Qh4 {[%emt 0:01:20]} Re8 {[%emt 0:00:00]} 28. f4 {[%emt 0:04:03]} Bb7 {[%emt 0:03:54]} 29. Qh7+ {[%emt 0:00:53]} Kf8 {[%emt 0:00:06]} 30. Qh3 {[%emt 0:02:16]} Qd8 {[%emt 0:08:15]} 31. Kf1 {[%emt 0:04:01]} Bf6 {[%emt 0:02:09]} 32. Qh6+ {[%emt 0:00:59]} Ke7 {[%emt 0:00:28]} 33. Bxg6 {[%emt 0:01:18]} Rh8 {[%emt 0:00:31]} 34. Bh7 {[%emt 0:00:20]} Bxg5 {[%emt 0:00:18]} 35. fxg5 {[%emt 0:00:42]} Qf8 {[%emt 0:00:27]} 36. Qf6+ {[%emt 0:00:02]} Ke8 {[%emt 0:00:17]} 37. g6 {[%emt 0:00:53]} fxg6 {[%emt 0:00:25]} 38. Bxg6+ {[%emt 0:00:02]} Kd7 {[%emt 0:00:06]} 39. Bf7 {[%emt 0:00:12]} Kc7 {[%emt 0:00:53]} 40. Qf4+ {[%emt 0:01:12]} Qd6 {[%emt 0:00:54]} 41. Qxd6+ {[%emt 0:00:40]} Kxd6 {[%emt 0:00:02]} 42. Kg1 {[%emt 0:00:31]} Rf8 {[%emt 0:00:09]} 43. Bh5 {[%emt 0:00:08]} Rg8 {[%emt 0:00:33]} 44. Kf2 {[%emt 0:00:10]} Bc8 {[%emt 0:00:40]} 45. g4 {[%emt 0:00:19]} Bd7 {[%emt 0:00:16]} 46. Kf3 {[%emt 0:00:31]} Be8 {[%emt 0:01:01]} 47. Bxe8 {[%emt 0:00:20]} Rxe8 {[%emt 0:00:03]} 48. g5 {[%emt 0:00:03]} Rg8 {[%emt 0:00:04]} 49. Kg4 {[%emt 0:00:13]} b4 {[%emt 0:01:01]} 50. Kh5 {[%emt 0:00:25]} c3 {[%emt 0:01:02]} 51. bxc3 {[%emt 0:00:42]} bxc3 {[%emt 0:00:04]} 52. Rc1 {[%emt 0:00:10]} e5 {[%emt 0:01:20]} 53. dxe5+ {[%emt 0:00:03]} Kxe5 {[%emt 0:00:02]} 54. Rxc3 {[%emt 0:00:17]} Kd5 {[%emt 0:00:22]} 55. g6 {[%emt 0:00:39]} c5 {[%emt 0:00:09]} 56. Kh6 {[%emt 0:00:10]} Kd4 {[%emt 0:00:15]} 57. Rf3 {[%emt 0:01:00]} c4 {[%emt 0:00:23]} 58. Kh7 {[%emt 0:00:21]} Re8 {[%emt 0:00:19]} 59. g7 {[%emt 0:00:32]} c3 {[%emt 0:00:46]} 60. Kg6 {[%emt 0:00:40]} c2 {[%emt 0:00:30]} 61. Rf1 {[%emt 0:00:32]} Rc8 {[%emt 0:01:16]} 62. Rc1 {[%emt 0:00:53]} Kd3 {[%emt 0:00:20]} 63. Kh7 {[%emt 0:00:14]} Kd2 {[%emt 0:00:38]} 64. Rxc2+ {[%emt 0:00:21]} Kxc2 {[%emt 0:00:03]} 65. g8=Q {[%emt 0:00:05]} Rxg8 {[%emt 0:00:02]} 66. Kxg8 {[%emt 0:00:13]} 1/2-1/2

[Event "FIDE World Cup G12-A 2024"]
[Site "Batumi"]
[Date "2024.06.29"]
[Round "7.10"]
[White "Zavivaeva, Angelina"]
[Black "Lipartia, Nino"]
[Result "1/2-1/2"]
[ECO "B56"]
[WhiteElo "1489"]
[BlackElo "1437"]
[Annotator "NA RC"]
[PlyCount "104"]
[EventDate "2024.06.23"]
[EventType "swiss"]
[EventCountry "GEO"]
[SourceTitle "playchess.com"]
[Source "ChessBase"]
[SourceQuality "1"]
[TimeControl "5400+30"]

1. e4 {[%emt 0:00:00]} c5 {[%emt 0:00:00]} 2. Nf3 {[%emt 0:00:06]} d6 {[%emt 0:00:07]} 3. d4 {[%emt 0:00:10]} cxd4 {[%emt 0:00:04]} 4. Nxd4 {[%emt 0:00:04]} Nf6 {[%emt 0:00:05]} 5. Nc3 {[%emt 0:00:04]} Nc6 {[%emt 0:00:02]} 6. f3 {[%emt 0:00:07]} e5 {[%emt 0:00:18]} 7. Nb3 {[%emt 0:00:04]} Be6 {[%emt 0:01:02]} 8. Nd5 {[%emt 0:00:05]} Bxd5 {[%emt 0:03:53]} 9. exd5 {[%emt 0:00:03]} Na5 {[%emt 0:03:02]} 10. Bg5 {[%emt 0:02:58]} a6 {[%emt 0:03:37]} 11. Bxf6 {[%emt 0:14:10]} gxf6 {[%emt 0:00:21]} 12. Qd2 {[%emt 0:00:05]} Nxb3 {[%emt 0:01:08]} 13. axb3 {[%emt 0:00:01]} Rc8 {[%emt 0:03:24]} 14. Bd3 {[%emt 0:00:19]} Qb6 {[%emt 0:02:29]} 15. Bf5 {[%emt 0:02:10]} Rc7 {[%emt 0:01:49]} 16. Qf2 {[%emt 0:23:08]} Qb4+ {[%emt 0:08:44]} 17. Qd2 {[%emt 0:03:16]} Qxd2+ {[%emt 0:03:45]} 18. Kxd2 {[%emt 0:00:02]} Rg8 {[%emt 0:02:27]} 19. g4 {[%emt 0:03:28]} h5 {[%emt 0:01:49]} 20. h4 {[%emt 0:12:18]} e4 {[%emt 0:11:49]} 21. Rae1 {[%emt 0:08:12]} Bh6+ {[%emt 0:01:47]} 22. Kd1 {[%emt 0:00:42]} e3 {[%emt 0:00:48]} 23. Rhg1 {[%emt 0:06:37]} Rc5 {[%emt 0:10:42]} 24. c4 {[%emt 0:02:02]} Ra5 {[%emt 0:07:10]} 25. Kc2 {[%emt 0:00:28]} hxg4 {[%emt 0:09:19]} 26. b4 {[%emt 0:04:44]} Ra4 {[%emt 0:02:52]} 27. Kb3 {[%emt 0:03:38]} b5 {[%emt 0:00:46]} 28. Bxg4 {[%emt 0:05:58]} f5 {[%emt 0:09:12]} 29. Bxf5 {[%emt 0:02:40]} Rxg1 {[%emt 0:00:02]} 30. Rxg1 {[%emt 0:00:00]} e2 {[%emt 0:00:27]} 31. Re1 {[%emt 0:06:34]} Rxb4+ {[%emt 0:00:31]} 32. Kxb4 {[%emt 0:00:37]} Bd2+ {[%emt 0:00:05]} 33. Kb3 {[%emt 0:00:05]} bxc4+ {[%emt 0:00:17]} 34. Kxc4 {[%emt 0:00:38]} Bxe1 {[%emt 0:00:03]} 35. Bd3 {[%emt 0:00:15]} Bxh4 {[%emt 0:00:16]} 36. Bxe2 {[%emt 0:00:02]} Bd8 {[%emt 0:00:30]} 37. Kb4 {[%emt 0:01:40]} a5+ {[%emt 0:00:37]} 38. Kb5 {[%emt 0:00:13]} Kd7 {[%emt 0:02:08]} 39. Bd3 {[%emt 0:00:39]} Bf6 {[%emt 0:01:39]} 40. b3 {[%emt 0:01:34]} Bc3 {[%emt 0:00:45]} 41. Bf5+ {[%emt 0:00:15]} Ke7 {[%emt 0:00:41]} 42. Kc6 {[%emt 0:00:08]} Bb4 {[%emt 0:00:14]} 43. Bc8 {[%emt 0:01:05]} Kf6 {[%emt 0:00:31]} 44. Bg4 {[%emt 0:00:33]} Ke5 {[%emt 0:02:50]} 45. Bh5 {[%emt 0:00:08]} f6 {[%emt 0:01:58]} 46. Bf7 {[%emt 0:00:06]} Kd4 {[%emt 0:01:41]} 47. Kb5 {[%emt 0:00:14]} Ke3 {[%emt 0:00:45]} 48. Bh5 {[%emt 0:00:09]} Kf4 {[%emt 0:00:27]} 49. Kc4 {[%emt 0:00:44]} Kg5 {[%emt 0:00:26]} 50. Bf7 {[%emt 0:00:26]} Kf4 {[%emt 0:06:06]} 51. Bh5 {[%emt 0:00:07]} Ke3 {[%emt 0:00:00]} 52. Bg4 {[%emt 0:00:31]} Kf4 {[%emt 0:00:00]} 1/2-1/2

[Event "FIDE World Cup G12-A 2024"]
[Site "Batumi"]
[Date "2024.06.29"]
[Round "7.11"]
[White "Wang, April"]
[Black "Ali, Maha"]
[Result "1-0"]
[ECO "D37"]
[WhiteElo "1622"]
[BlackElo "1601"]
[Annotator "NA RC"]
[PlyCount "83"]
[EventDate "2024.06.23"]
[EventType "swiss"]
[EventCountry "GEO"]
[SourceTitle "playchess.com"]
[Source "ChessBase"]
[SourceQuality "1"]
[TimeControl "5400+30"]

1. d4 {[%emt 0:00:03]} d5 {[%emt 0:00:07]} 2. c4 {[%emt 0:00:14]} e6 {[%emt 0:00:07]} 3. Nc3 {[%emt 0:00:08]} Nf6 {[%emt 0:00:08]} 4. Nf3 {[%emt 0:00:17]} Be7 {[%emt 0:00:07]} 5. Bf4 {[%emt 0:00:18]} O-O {[%emt 0:01:27]} 6. e3 {[%emt 0:00:43]} b6 {[%emt 0:00:43]} 7. Qc2 {[%emt 0:01:30]} Bb7 {[%emt 0:01:11]} 8. cxd5 {[%emt 0:01:40]} exd5 {[%emt 0:04:12]} 9. Bd3 {[%emt 0:01:34]} Nbd7 {[%emt 0:01:07]} 10. a3 {[%emt 0:05:30]} Re8 {[%emt 0:02:19]} 11. Nb5 {[%emt 0:02:18]} a6 {[%emt 0:11:46]} 12. Qxc7 {[%emt 0:08:34]} axb5 {[%emt 0:02:51]} 13. Qxb7 {[%emt 0:00:55]} b4 {[%emt 0:02:20]} 14. a4 {[%emt 0:02:00]} b3 {[%emt 0:02:08]} 15. O-O {[%emt 0:03:56]} Ra5 {[%emt 0:03:51]} 16. Bb5 {[%emt 0:04:17]} Qc8 {[%emt 0:04:09]} 17. Qxc8 {[%emt 0:00:57]} Rxc8 {[%emt 0:00:10]} 18. Rac1 {[%emt 0:01:18]} Raa8 {[%emt 0:03:20]} 19. Ne5 {[%emt 0:04:50]} Nxe5 {[%emt 0:05:18]} 20. Bxe5 {[%emt 0:00:09]} Ne4 {[%emt 0:04:03]} 21. Bc7 {[%emt 0:03:50]} Bd8 {[%emt 0:10:00]} 22. Bxd8 {[%emt 0:01:21]} Rxd8 {[%emt 0:05:32]} 23. Rc6 {[%emt 0:02:21]} Rab8 {[%emt 0:01:45]} 24. Rfc1 {[%emt 0:01:48]} Nd6 {[%emt 0:01:47]} 25. R1c3 {[%emt 0:03:02]} Nxb5 {[%emt 0:03:39]} 26. axb5 {[%emt 0:01:06]} Ra8 {[%emt 0:00:23]} 27. g3 {[%emt 0:00:33]} Ra1+ {[%emt 0:05:31]} 28. Kg2 {[%emt 0:00:34]} Rb1 {[%emt 0:00:31]} 29. Rxb3 {[%emt 0:00:34]} Rb8 {[%emt 0:02:04]} 30. Rd6 {[%emt 0:00:47]} Kf8 {[%emt 0:22:54]} 31. Rxd5 {[%emt 0:00:34]} Ke7 {[%emt 0:00:00]} 32. e4 {[%emt 0:01:04]} g6 {[%emt 0:00:00]} 33. e5 {[%emt 0:01:31]} h6 {[%emt 0:00:00]} 34. Rd6 {[%emt 0:01:09]} Rc1 {[%emt 0:00:00]} 35. d5 {[%emt 0:02:35]} Rc5 {[%emt 0:00:00]} 36. Kf3 {[%emt 0:01:32]} f5 {[%emt 0:00:00]} 37. Rd3 {[%emt 0:02:46]} Kf7 {[%emt 0:00:00]} 38. Rd7+ {[%emt 0:00:44]} Kg8 {[%emt 0:00:00]} 39. e6 {[%emt 0:00:23]} Rxb5 {[%emt 0:00:00]} 40. e7 {[%emt 0:00:24]} Re8 {[%emt 0:00:00]} 41. Rd8 {[%emt 0:00:37]} Kf7 {[%emt 0:00:00]} 42. d6 {[%emt 0:41:04]} 1-0